fUST/lending_fUST_20250717
["ID","MTS","AMOUNT","RATE_DAILY","PERIOD"]
[372595495,1752699043331,-353.14597814,0.00019137,2]
[372595497,1752699043340,-462.60857196,0.00019137,2]
[372595499,1752699043350,-460.0,0.00019137,2]
[372595501,1752699043359,-460.0,0.00019137,2]
[372595503,1752699043369,-535.8635729,0.00019137,2]
[372595505,1752699043379,-460.0,0.00019137,2]
[372595506,1752699043388,-460.0,0.00019137,2]
[372595507,1752699043399,-292.17819883,0.00019137,2]
[372595508,1752699043410,-460.0,0.00019137,2]
[372595509,1752699043419,-460.0,0.00019137,2]
[372595510,1752699043428,-460.0,0.00019137,2]
[372595511,1752699043439,-460.0,0.00019137,2]
[372595512,1752699043448,-460.0,0.00019137,2]
[372595513,1752699043458,-460.0,0.00019137,2]
[372595514,1752699043468,-460.0,0.00019137,2]
[372595515,1752699043477,-460.0,0.00019137,2]
[372595516,1752699043487,-460.0,0.00019137,2]
[372595517,1752699043496,-460.0,0.00019137,2]
[372595518,1752699043506,-460.0,0.00019137,2]
[372595519,1752699043515,-460.0,0.00019137,2]
[372595520,1752699043525,-460.0,0.00019137,2]
[372595521,1752699043534,-460.0,0.00019137,2]
[372595522,1752699043544,-460.0,0.00019137,2]
[372595523,1752699043553,-460.0,0.00019137,2]
[372595524,1752699043562,-460.0,0.00019137,2]
[372595525,1752699043572,-460.0,0.00019137,2]
[372595526,1752699043582,-462.21758011,0.00019137,2]
[372595527,1752699043591,-460.0,0.00019137,2]
[372595528,1752699043601,-460.0,0.00019137,2]
[372595529,1752699043611,-303.16503777,0.0001914,2]
[372595530,1752699043620,-460.0,0.0001914,2]
[372595531,1752699043630,-7157.81202599,0.00019141,2]
[372595532,1752699043641,-568.11600617,0.00019173,2]
[372595533,1752699043650,-500.0,0.00019173,2]
[372595534,1752699043660,-500.0,0.00019173,2]
[372595535,1752699043670,-500.0,0.00019173,2]
[372595536,1752699043679,-500.0,0.00019173,2]
[372595537,1752699043797,-174.76990426,0.00019178,2]
[372595538,1752699043807,-666.0,0.00019178,2]
[372595539,1752699043816,-183.283298,0.00019178,2]
[372595540,1752699043825,-13782.60463606,0.00019201,2]
[372595541,1752699043835,-699.11,0.00019233,2]
[372595542,1752699043844,-100000.0,0.00019329,2]
[372595543,1752699043854,-500.0,0.00019373,2]
[372595544,1752699043863,-500.0,0.00019373,2]
[372595545,1752699043872,-500.0,0.00019373,2]
[372595546,1752699043882,-500.0,0.00019373,2]
[372595547,1752699043891,-500.8009727,0.00019373,2]
[372595548,1752699043901,-260.11036964,0.00019373,2]
[372595549,1752699043911,-158.13031475,0.00019373,2]
[372595550,1752699043921,-7157.81202599,0.00019383,2]
[372595551,1752699043931,-460.0,0.00019399,2]
[372595552,1752699043940,-460.0,0.00019399,2]
[372595553,1752699043949,-460.0,0.00019399,2]
[372595554,1752699043959,-460.0,0.00019399,2]
[372595555,1752699043968,-605.83751557,0.00019399,2]
[372595556,1752699043978,-460.0,0.00019399,2]
[372595557,1752699043987,-460.0,0.00019399,2]
[372595558,1752699043996,-460.0,0.00019399,2]
[372595559,1752699044006,-460.0,0.00019399,2]
[372595560,1752699044016,-460.0,0.00019399,2]
[372595561,1752699044026,-460.0,0.00019399,2]
[372595562,1752699044035,-460.0,0.00019399,2]
[372595563,1752699044045,-460.0,0.00019399,2]
[372595564,1752699044054,-1332.91,0.00019399,2]
[372595565,1752699044064,-460.0,0.00019399,2]
[372595567,1752699044074,-460.0,0.00019399,2]
[372595569,1752699044083,-460.0,0.00019399,2]
[372595571,1752699044092,-208.1314031,0.00019399,2]
[372595572,1752699044101,-460.0,0.00019399,2]
[372595573,1752699044112,-460.0,0.00019399,2]
[372595574,1752699044123,-486.67619145,0.00019399,2]
[372595575,1752699044132,-460.0,0.00019399,2]
[372595576,1752699044142,-460.0,0.00019399,2]
[372595577,1752699044153,-460.0,0.00019399,2]
[372595578,1752699044162,-460.0,0.000194,2]
[372595581,1752699044173,-461.93038741,0.000194,2]
[372595583,1752699044182,-332.61943307,0.000194,2]
[372595585,1752699044191,-564.08697065,0.000194,2]
[372595587,1752699044202,-460.0,0.000194,2]
[372595588,1752699044212,-460.0,0.000194,2]
[372595590,1752699044222,-460.0,0.000194,2]
[372595592,1752699044231,-460.0,0.000194,2]
[372595593,1752699044240,-460.0,0.000194,2]
[372595595,1752699044249,-460.0,0.000194,2]
[372595597,1752699044259,-460.0,0.000194,2]
[372595599,1752699044268,-460.0,0.000194,2]
[372595601,1752699044278,-460.0,0.000194,2]
[372595603,1752699044288,-417.77495378,0.000194,2]
[372595605,1752699044298,-460.0,0.000194,2]
[372595607,1752699044308,-1871.41,0.000194,2]
[372595609,1752699044317,-3314.49,0.000194,2]
[372595610,1752699044327,-460.0,0.000194,2]
[372595611,1752699044336,-460.0,0.000194,2]
[372595613,1752699044346,-460.0,0.000194,2]
[372595615,1752699044356,-2610.63,0.000194,2]
[372595617,1752699044366,-460.0,0.000194,2]
[372595619,1752699044375,-460.0,0.000194,2]
[372595621,1752699044386,-1669.41,0.000194,2]
[372595624,1752699044396,-1219.41,0.000194,2]
[372595626,1752699044405,-460.0,0.000194,2]
[372595628,1752699044415,-460.0,0.000194,2]
[372595629,1752699044424,-460.0,0.00019403,2]
[372595632,1752699044434,-460.0,0.00019403,2]
[372595633,1752699044443,-460.0,0.00019403,2]
[372595634,1752699044453,-460.0,0.00019403,2]
[372595635,1752699044463,-460.0,0.00019403,2]
[372595636,1752699044473,-460.0,0.00019403,2]
[372595637,1752699044483,-460.0,0.00019403,2]
[372595638,1752699044494,-460.0,0.00019403,2]
[372595639,1752699044503,-460.0,0.00019403,2]
[372595640,1752699044513,-460.0,0.00019403,2]
[372595641,1752699044522,-460.0,0.00019403,2]
[372595642,1752699044532,-460.0,0.00019403,2]
[372595643,1752699044542,-989.64,0.00019403,2]
[372595644,1752699044552,-460.0,0.00019403,2]
[372595645,1752699044561,-460.0,0.00019403,2]
[372595647,1752699044570,-460.0,0.00019403,2]
[372595649,1752699044579,-460.0,0.00019403,2]
[372595651,1752699044589,-460.0,0.00019403,2]
[372595653,1752699044598,-460.0,0.00019403,2]
[372595655,1752699044609,-460.0,0.00019403,2]
[372595657,1752699044619,-583.58,0.00019403,2]
[372595659,1752699044628,-460.0,0.00019403,2]
[372595661,1752699044637,-460.0,0.00019403,2]
[372595663,1752699044647,-460.0,0.00019403,2]
[372595665,1752699044657,-460.0,0.00019403,2]
[372595667,1752699044666,-460.0,0.00019403,2]
[372595669,1752699044676,-877.12,0.00019403,2]
[372595671,1752699044686,-460.0,0.00019403,2]
[372595673,1752699044696,-460.0,0.00019403,2]
[372595675,1752699044705,-2685.11,0.00019405,2]
[372595677,1752699044715,-689.34,0.00019405,2]
[372595679,1752699044725,-603.17,0.00019405,2]
[372595681,1752699044735,-1341.81,0.00019405,2]
[372595683,1752699044744,-460.0,0.00019405,2]
[372595685,1752699044753,-460.0,0.00019406,2]
[372595687,1752699044763,-460.0,0.00019406,2]
[372595689,1752699044772,-460.0,0.00019406,2]
[372595691,1752699044781,-460.0,0.00019406,2]
[372595693,1752699044790,-460.0,0.00019406,2]
[372595694,1752699044800,-460.0,0.00019406,2]
[372595695,1752699044821,-460.0,0.00019406,2]
[372595696,1752699044831,-460.0,0.00019406,2]
[372595697,1752699044840,-460.0,0.00019406,2]
[372595698,1752699044850,-460.0,0.00019406,2]
[372595699,1752699044859,-460.0,0.00019406,2]
[372595700,1752699044869,-477.91,0.00019406,2]
[372595701,1752699044879,-178.43120942,0.00019406,2]
[372595702,1752699044889,-460.0,0.00019406,2]
[372595703,1752699044898,-460.0,0.00019406,2]
[372595704,1752699044907,-698.01,0.00019406,2]
[372595705,1752699044918,-460.0,0.00019406,2]
[372595706,1752699044927,-460.0,0.00019406,2]
[372595707,1752699044937,-294.86,0.00019406,2]
[372595708,1752699044946,-460.0,0.00019406,2]
[372595709,1752699044956,-460.0,0.00019406,2]
[372595710,1752699044967,-460.0,0.00019409,2]
[372595711,1752699044977,-460.0,0.00019409,2]
[372595712,1752699044986,-460.0,0.00019409,2]
[372595713,1752699044996,-270.35235459,0.00019409,2]
[372595714,1752699045007,-575.96545503,0.00019409,2]
[372595715,1752699045017,-462.9751234,0.00019409,2]
[372595716,1752699045026,-460.0,0.00019409,2]
[372595717,1752699045036,-460.0,0.00019409,2]
[372595718,1752699045045,-460.0,0.00019409,2]
[372595719,1752699045055,-460.0,0.00019409,2]
[372595720,1752699045064,-460.0,0.00019409,2]
[372595721,1752699045074,-460.0,0.00019409,2]
[372595722,1752699045083,-263.30325663,0.00019409,2]
[372595723,1752699045093,-460.0,0.00019409,2]
[372595724,1752699045103,-314.76720796,0.00019409,2]
[372595725,1752699045116,-460.0,0.00019409,2]
[372595726,1752699045125,-460.0,0.00019409,2]
[372595727,1752699045134,-460.0,0.00019409,2]
[372595728,1752699045144,-460.0,0.00019409,2]
[372595729,1752699045154,-460.0,0.00019409,2]
[372595730,1752699045164,-460.0,0.00019409,2]
[372595731,1752699045173,-460.0,0.00019409,2]
[372595732,1752699045183,-460.0,0.00019409,2]
[372595733,1752699045192,-460.0,0.00019409,2]
[372595734,1752699045202,-460.0,0.00019409,2]
[372595735,1752699045213,-460.0,0.00019409,2]
[372595736,1752699045222,-460.0,0.00019409,2]
[372595737,1752699045231,-654.63,0.00019409,2]
[372595738,1752699045241,-460.0,0.00019409,2]
[372595739,1752699045251,-460.0,0.00019411,2]
[372595740,1752699045260,-460.0,0.00019411,2]
[372595741,1752699045270,-460.0,0.00019411,2]
[372595742,1752699045279,-460.0,0.00019411,2]
[372595743,1752699045289,-460.0,0.00019411,2]
[372595744,1752699045299,-460.0,0.00019411,2]
[372595745,1752699045309,-460.0,0.00019411,2]
[372595746,1752699045318,-460.74449251,0.00019411,2]
[372595747,1752699045328,-460.0,0.00019411,2]
[372595748,1752699045337,-460.0,0.00019411,2]
[372595749,1752699045346,-460.0,0.00019411,2]
[372595750,1752699045355,-460.0,0.00019414,2]
[372595751,1752699045365,-699.11,0.00019507,2]
[372595752,1752699045375,-7157.81202599,0.00019624,2]
[372595753,1752699045384,-460.0,0.00019673,2]
[372595755,1752699045394,-460.0,0.00019673,2]
[372595757,1752699045403,-460.0,0.00019673,2]
[372595758,1752699045413,-460.0,0.00019673,2]
[372595759,1752699045423,-460.0,0.00019673,2]
[372595760,1752699045433,-460.0,0.00019673,2]
[372595761,1752699045442,-460.0,0.00019673,2]
[372595762,1752699045452,-460.0,0.00019673,2]
[372595763,1752699045463,-460.0,0.00019673,2]
[372595764,1752699045473,-460.0,0.00019673,2]
[372595765,1752699045482,-460.0,0.00019673,2]
[372595766,1752699045492,-460.0,0.00019673,2]
[372595768,1752699045501,-1332.91,0.00019673,2]
[372595769,1752699045511,-460.0,0.00019673,2]
[372595770,1752699045520,-461.0627595,0.00019673,2]
[372595771,1752699045530,-547.24862779,0.00019673,2]
[372595772,1752699045539,-460.0,0.00019673,2]
[372595773,1752699045548,-190.26443926,0.00019674,2]
[372595774,1752699045557,-460.0,0.00019674,2]
[372595775,1752699045567,-225.54504234,0.00019674,2]
[372595776,1752699045577,-460.0,0.00019674,2]
[372595777,1752699045587,-460.0,0.00019674,2]
[372595778,1752699045597,-349.21344755,0.00019674,2]
[372595779,1752699045607,-460.0,0.00019674,2]
[372595780,1752699045616,-460.0,0.00019674,2]
[372595781,1752699045626,-460.0,0.00019674,2]
[372595782,1752699045636,-1871.41,0.00019674,2]
[372595783,1752699045645,-3314.49,0.00019674,2]
[372595784,1752699045655,-460.0,0.00019674,2]
[372595785,1752699045665,-460.0,0.00019674,2]
[372595786,1752699045675,-460.0,0.00019674,2]
[372595787,1752699045684,-2610.63,0.00019674,2]
[372595788,1752699045693,-460.0,0.00019674,2]
[372595789,1752699045703,-460.0,0.00019674,2]
[372595790,1752699045712,-1669.41,0.00019674,2]
[372595791,1752699045721,-1219.41,0.00019674,2]
[372595792,1752699045731,-460.0,0.00019674,2]
[372595793,1752699045740,-460.0,0.00019674,2]
[372595794,1752699045749,-460.0,0.00019677,2]
[372595795,1752699045759,-460.0,0.00019677,2]
[372595796,1752699045769,-460.0,0.00019677,2]
[372595797,1752699045778,-460.0,0.00019677,2]
[372595798,1752699045788,-460.0,0.00019677,2]
[372595799,1752699045797,-460.0,0.00019677,2]
[372595800,1752699045807,-460.0,0.00019677,2]
[372595801,1752699045816,-460.0,0.00019677,2]
[372595802,1752699045826,-460.0,0.00019677,2]
[372595803,1752699045835,-460.0,0.00019677,2]
[372595804,1752699045845,-989.64,0.00019677,2]
[372595805,1752699045856,-460.0,0.00019677,2]
[372595806,1752699045865,-460.0,0.00019677,2]
[372595807,1752699045874,-473.52,0.00019677,2]
[372595808,1752699045884,-460.0,0.00019677,2]
[372595809,1752699045894,-460.0,0.00019677,2]
[372595810,1752699045903,-460.0,0.00019677,2]
[372595811,1752699045913,-460.0,0.00019677,2]
[372595812,1752699045922,-583.58,0.00019677,2]
[372595813,1752699045931,-460.0,0.00019677,2]
[372595814,1752699045941,-460.0,0.00019677,2]
[372595815,1752699045951,-460.0,0.00019677,2]
[372595816,1752699045961,-460.0,0.00019677,2]
[372595817,1752699045971,-460.0,0.00019677,2]
[372595818,1752699045981,-877.12,0.00019677,2]
[372595819,1752699045991,-460.0,0.00019677,2]
[372595820,1752699046001,-516.3,0.00019677,2]
[372595821,1752699046011,-2685.11,0.00019679,2]
[372595822,1752699046020,-689.34,0.00019679,2]
[372595823,1752699046029,-603.17,0.00019679,2]
[372595824,1752699046038,-1341.81,0.00019679,2]
[372595825,1752699046048,-561.84344684,0.0001968,2]
[372595826,1752699046058,-460.0,0.0001968,2]
[372595827,1752699046068,-460.0,0.0001968,2]
[372595828,1752699046077,-460.0,0.0001968,2]
[372595829,1752699046086,-460.0,0.0001968,2]
[372595830,1752699046096,-460.0,0.0001968,2]
[372595831,1752699046105,-460.0,0.0001968,2]
[372595832,1752699046118,-460.0,0.0001968,2]
[372595833,1752699046127,-477.91,0.0001968,2]
[372595834,1752699046137,-460.0,0.0001968,2]
[372595835,1752699046146,-460.0,0.0001968,2]
[372595836,1752699046157,-698.01,0.0001968,2]
[372595837,1752699046167,-460.0,0.0001968,2]
[372595838,1752699046176,-460.0,0.0001968,2]
[372595839,1752699046186,-593.68401713,0.0001968,2]
[372595840,1752699046195,-460.0,0.0001968,2]
[372595841,1752699046205,-461.4511122,0.00019683,2]
[372595843,1752699046215,-460.0,0.00019683,2]
[372595845,1752699046225,-460.0,0.00019683,2]
[372595847,1752699046234,-601.56278443,0.00019683,2]
[372595848,1752699046243,-175.04,0.00019683,2]
[372595849,1752699046256,-460.0,0.00019683,2]
[372595850,1752699046266,-460.0,0.00019683,2]
[372595851,1752699046275,-460.0,0.00019683,2]
[372595852,1752699046285,-460.0,0.00019683,2]
[372595853,1752699046295,-654.63,0.00019683,2]
[372595854,1752699046304,-460.0,0.00019683,2]
[372595855,1752699046314,-460.0,0.00019685,2]
[372595856,1752699046323,-460.0,0.00019685,2]
[372595857,1752699046333,-187.14129673,0.00019685,2]
[372595858,1752699046342,-460.0,0.00019685,2]
[372595859,1752699046351,-460.0,0.00019685,2]
[372595860,1752699046361,-226.36018482,0.00019688,2]
[372595861,1752699046370,-1000.0,0.00019721,2]
[372595862,1752699046380,-1971.39477927,0.00019742,2]
[372595863,1752699046390,-699.11,0.00019781,2]
[372595864,1752699046399,-500.0,0.00019784,2]
[372595865,1752699046409,-155.0,0.00019828,2]
[372595866,1752699046418,-471.88357901,0.00019829,2]
[372595867,1752699046428,-1997.29001985,0.00019844,2]
[372595868,1752699046437,-7157.81202599,0.00019866,2]
[372595869,1752699046447,-220.7742802,0.000199,2]
[372595870,1752699046456,-1000.0,0.00019921,2]
[372595871,1752699046467,-1000.0,0.00019921,2]
[372595872,1752699046477,-572.3052284,0.00019921,2]
[372595873,1752699046487,-500.0,0.00019942,2]
[372595874,1752699046497,-500.0,0.00019942,2]
[372595875,1752699046507,-525.44090785,0.00019942,2]
[372595876,1752699046517,-500.0,0.00019942,2]
[372595877,1752699046527,-500.0,0.00019942,2]
[372595878,1752699046537,-152.08269484,0.00019942,2]
[372595879,1752699046548,-460.0,0.00019947,2]
[372595880,1752699046558,-460.0,0.00019947,2]
[372595881,1752699046568,-460.0,0.00019947,2]
[372595882,1752699046578,-460.0,0.00019947,2]
[372595883,1752699046588,-460.0,0.00019947,2]
[372595884,1752699046599,-453.68746148,0.00019947,2]
[372595885,1752699046609,-460.0,0.00019947,2]
[372595886,1752699046619,-460.0,0.00019947,2]
[372595887,1752699046628,-298.02569367,0.00019947,2]
[372595888,1752699046731,-1332.91,0.00019947,2]
[372595889,1752699046756,-384.83249939,0.00019947,2]
[372595890,1752699046766,-460.0,0.00019947,2]
[372595891,1752699046775,-460.0,0.00019948,2]
[372595892,1752699046785,-460.0,0.00019948,2]
[372595893,1752699046794,-460.0,0.00019948,2]
[372595894,1752699046803,-1871.41,0.00019948,2]
[372595895,1752699046813,-3314.49,0.00019948,2]
[372595897,1752699046823,-460.0,0.00019948,2]
[372595898,1752699046832,-460.0,0.00019948,2]
[372595899,1752699046841,-2610.63,0.00019948,2]
[372595900,1752699046851,-460.0,0.00019948,2]
[372595901,1752699046859,-460.0,0.00019948,2]
[372595902,1752699046869,-1669.41,0.00019948,2]
[372595903,1752699046878,-1219.41,0.00019948,2]
[372595904,1752699046888,-460.0,0.00019948,2]
[372595905,1752699046897,-460.0,0.00019948,2]
[372595906,1752699046906,-460.0,0.00019951,2]
[372595907,1752699046915,-460.0,0.00019951,2]
[372595908,1752699046924,-460.0,0.00019951,2]
[372595909,1752699046933,-460.0,0.00019951,2]
[372595910,1752699046943,-460.0,0.00019951,2]
[372595911,1752699046952,-460.0,0.00019951,2]
[372595912,1752699046964,-460.0,0.00019951,2]
[372595913,1752699046973,-460.0,0.00019951,2]
[372595914,1752699046982,-460.0,0.00019951,2]
[372595915,1752699046992,-460.0,0.00019951,2]
[372595916,1752699047000,-989.64,0.00019951,2]
[372595917,1752699047010,-460.0,0.00019951,2]
[372595918,1752699047019,-460.0,0.00019951,2]
[372595919,1752699047029,-460.0,0.00019951,2]
[372595920,1752699047039,-460.0,0.00019951,2]
[372595921,1752699047048,-460.0,0.00019951,2]
[372595922,1752699047057,-460.0,0.00019951,2]
[372595923,1752699047066,-583.58,0.00019951,2]
[372595924,1752699047075,-460.0,0.00019951,2]
[372595925,1752699047085,-460.0,0.00019951,2]
[372595926,1752699047094,-460.0,0.00019951,2]
[372595927,1752699047104,-460.0,0.00019951,2]
[372595928,1752699047116,-460.0,0.00019951,2]
[372595929,1752699047126,-877.12,0.00019951,2]
[372595930,1752699047135,-460.0,0.00019951,2]
[372595931,1752699047144,-2685.11,0.00019953,2]
[372595932,1752699047155,-689.34,0.00019953,2]
[372595933,1752699047164,-603.17,0.00019953,2]
[372595934,1752699047173,-1341.81,0.00019953,2]
[372595935,1752699047182,-460.0,0.00019954,2]
[372595936,1752699047191,-568.66,0.00019954,2]
[372595937,1752699047200,-460.0,0.00019954,2]
[372595938,1752699047212,-460.0,0.00019954,2]
[372595939,1752699047221,-460.0,0.00019954,2]
[372595940,1752699047230,-477.91,0.00019954,2]
[372595941,1752699047239,-460.0,0.00019954,2]
[372595942,1752699047248,-460.0,0.00019954,2]
[372595943,1752699047257,-698.01,0.00019954,2]
[372595945,1752699047266,-460.0,0.00019954,2]
[372595947,1752699047276,-460.0,0.00019954,2]
[372595949,1752699047286,-460.0,0.00019954,2]
[372595951,1752699047295,-460.0,0.00019957,2]
[372595953,1752699047305,-460.0,0.00019957,2]
[372595954,1752699047314,-460.0,0.00019957,2]
[372595955,1752699047324,-460.0,0.00019957,2]
[372595956,1752699047333,-460.0,0.00019957,2]
[372595957,1752699047343,-654.63,0.00019957,2]
[372595958,1752699047353,-544.71,0.00019957,2]
[372595959,1752699047362,-460.0,0.00019959,2]
[372595961,1752699047371,-250.99433971,0.00019959,2]
[372595963,1752699047381,-500.0,0.00019964,2]
[372595965,1752699047390,-1357.98293095,0.00020002,2]
[372595967,1752699047400,-699.11,0.00020055,2]
[372595969,1752699047409,-517.3120737,0.00020077,2]
[372595971,1752699047419,-7157.81202599,0.00020107,2]
[372595973,1752699047428,-500.0,0.00020144,2]
[372595975,1752699047438,-500.0,0.00020144,2]
[372595977,1752699047447,-336.432066,0.00020187,2]
[372595979,1752699047456,-2100.88,0.00020202,3]
[372595981,1752699047469,-1050.44,0.00020202,3]
[372595983,1752699047478,-525.22,0.00020212,3]
[372595985,1752699047488,-229.80287337,0.00020221,2]
[372595987,1752699047497,-321.85,0.00020221,2]
[372595989,1752699047506,-460.0,0.00020221,2]
[372595991,1752699047516,-460.0,0.00020221,2]
[372595993,1752699047525,-1332.91,0.00020221,2]
[372595995,1752699047534,-460.0,0.00020221,2]
[372595997,1752699047544,-1871.41,0.00020222,2]
[372595999,1752699047553,-460.0,0.00020222,2]
[372596001,1752699047563,-3314.49,0.00020222,2]
[372596003,1752699047573,-460.0,0.00020222,2]
[372596005,1752699047584,-528.9,0.00020222,2]
[372596007,1752699047593,-2610.63,0.00020222,2]
[372596009,1752699047602,-460.0,0.00020222,2]
[372596011,1752699047611,-460.0,0.00020222,2]
[372596013,1752699047621,-1669.41,0.00020222,2]
[372596015,1752699047630,-1219.41,0.00020222,2]
[372596016,1752699047639,-460.0,0.00020222,2]
[372596017,1752699047648,-460.0,0.00020222,2]
[372596018,1752699047658,-460.0,0.00020225,2]
[372596019,1752699047667,-460.0,0.00020225,2]
[372596020,1752699047676,-460.0,0.00020225,2]
[372596021,1752699047686,-460.0,0.00020225,2]
[372596022,1752699047696,-594.99,0.00020225,2]
[372596023,1752699047705,-460.0,0.00020225,2]
[372596024,1752699047717,-460.0,0.00020225,2]
[372596025,1752699047726,-463.25,0.00020225,2]
[372596026,1752699047736,-460.0,0.00020225,2]
[372596027,1752699047745,-989.64,0.00020225,2]
[372596028,1752699047755,-460.0,0.00020225,2]
[372596029,1752699047764,-460.0,0.00020225,2]
[372596030,1752699047773,-460.0,0.00020225,2]
[372596031,1752699047783,-460.0,0.00020225,2]
[372596032,1752699047792,-460.0,0.00020225,2]
[372596033,1752699047801,-583.58,0.00020225,2]
[372596034,1752699047810,-460.0,0.00020225,2]
[372596035,1752699047819,-460.0,0.00020225,2]
[372596036,1752699047829,-877.12,0.00020225,2]
[372596037,1752699047838,-460.0,0.00020225,2]
[372596038,1752699047848,-2685.11,0.00020227,2]
[372596039,1752699047858,-689.34,0.00020227,2]
[372596040,1752699047867,-603.17,0.00020227,2]
[372596041,1752699047877,-1341.81,0.00020227,2]
[372596042,1752699047886,-460.0,0.00020228,2]
[372596043,1752699047896,-460.0,0.00020228,2]
[372596044,1752699047906,-460.0,0.00020228,2]
[372596045,1752699047915,-460.0,0.00020228,2]
[372596046,1752699047925,-477.91,0.00020228,2]
[372596047,1752699047934,-555.2,0.00020228,2]
[372596049,1752699047944,-460.0,0.00020228,2]
[372596051,1752699047953,-698.01,0.00020228,2]
[372596053,1752699047964,-460.0,0.00020228,2]
[372596055,1752699047973,-430.56362584,0.00020228,2]
[372596057,1752699047982,-460.0,0.00020228,2]
[372596059,1752699047992,-460.0,0.00020231,2]
[372596061,1752699048001,-460.0,0.00020231,2]
[372596063,1752699048011,-460.0,0.00020231,2]
[372596065,1752699048021,-460.0,0.00020231,2]
[372596067,1752699048030,-654.63,0.00020231,2]
[372596069,1752699048039,-460.0,0.00020233,2]
[372596071,1752699048048,-1500.0,0.00020268,2]
[372596073,1752699048059,-699.11,0.00020329,2]
[372596075,1752699048068,-7157.81202599,0.00020348,3]
[372596077,1752699048078,-160.0,0.0002035,3]
[372596079,1752699048090,-12605.49131908,0.0002035,3]
[372596081,1752699048099,-500.0,0.000204,2]
[372596083,1752699048109,-500.0,0.000204,2]
[372596085,1752699048122,-500.0,0.000204,2]
[372596087,1752699048132,-500.0,0.000204,2]
[372596089,1752699048142,-700.0,0.00020408,2]
[372596091,1752699048151,-1003.27154105,0.0002049,2]
[372596093,1752699048161,-1000.0,0.0002049,2]
[372596095,1752699048171,-261.75,0.00020495,2]
[372596096,1752699048180,-1332.91,0.00020495,2]
[372596098,1752699048191,-479.45815707,0.00020495,2]
[372596100,1752699048201,-1871.41,0.00020496,2]
[372596102,1752699048211,-460.0,0.00020496,2]
[372596104,1752699048221,-3314.49,0.00020496,2]
[372596106,1752699048231,-460.0,0.00020496,2]
[372596108,1752699048241,-2610.63,0.00020496,2]
[372596110,1752699048251,-326.06,0.00020496,2]
[372596112,1752699048261,-460.0,0.00020496,2]
[372596114,1752699048271,-1669.41,0.00020496,2]
[372596116,1752699048281,-1219.41,0.00020496,2]
[372596118,1752699048293,-460.0,0.00020496,2]
[372596120,1752699048303,-460.0,0.00020496,2]
[372596122,1752699048314,-460.0,0.00020499,2]
[372596124,1752699048325,-460.0,0.00020499,2]
[372596126,1752699048336,-460.0,0.00020499,2]
[372596128,1752699048346,-184.08,0.00020499,2]
[372596130,1752699048357,-460.0,0.00020499,2]
[372596132,1752699048368,-989.64,0.00020499,2]
[372596134,1752699048378,-460.0,0.00020499,2]
[372596136,1752699048387,-460.0,0.00020499,2]